fUSD/lending_fUSD_20240121
["ID","MTS","AMOUNT","RATE_DAILY","PERIOD"]
[312412940,1705863083946,-500.0,0.00041643,31]
[312412941,1705863083955,-500.0,0.00041643,31]
[312412942,1705863083964,-500.0,0.00041643,31]
[312412943,1705863083974,-500.0,0.00041643,31]
[312412944,1705863083983,-4210.98,0.00041643,31]
[312412945,1705863083993,-500.0,0.00041643,31]
[312412946,1705863084002,-1010.5,0.00041643,31]
[312412947,1705863084012,-500.0,0.00041643,31]
[312412948,1705863084021,-500.0,0.00041643,31]
[312412949,1705863084030,-5113.55,0.00041643,31]
[312412950,1705863084040,-500.0,0.00041643,31]
[312412951,1705863084049,-5553.41,0.00041643,31]
[312412952,1705863084058,-500.0,0.00041643,31]
[312412953,1705863084068,-2021.88,0.00041643,31]
[312412954,1705863084077,-831.35,0.00041643,31]
[312412955,1705863084086,-500.0,0.00041643,31]
[312412956,1705863084095,-500.0,0.00041643,31]
[312412957,1705863084105,-1451.78,0.00041643,31]
[312412958,1705863084114,-2047.15,0.00041643,31]
[312412959,1705863084124,-1645.64,0.00041643,31]
[312412960,1705863084133,-500.0,0.00041643,31]
[312412961,1705863084142,-500.0,0.00041643,31]
[312412962,1705863084152,-500.0,0.00041643,31]
[312412963,1705863084161,-928.47,0.00041643,31]
[312412964,1705863084171,-1009.2,0.00041643,31]
[312412965,1705863084181,-510.63628165,0.00041643,31]
[312412966,1705863084190,-1721.6,0.00041643,31]
[312412967,1705863084199,-507.02,0.00041643,31]
[312412968,1705863084210,-500.0,0.00041643,31]
[312412969,1705863084219,-833.04,0.00041643,31]
[312412970,1705863084229,-500.0,0.00041643,31]
[312412971,1705863084238,-237.72699228,0.00041643,31]
[312412972,1705863084248,-853.75,0.00041643,31]
[312412973,1705863084257,-3752.11,0.00041643,31]
[312412974,1705863084267,-1139.83,0.00041643,31]
[312412975,1705863084276,-2604.2,0.00041643,31]
[312412976,1705863084286,-500.0,0.00041643,31]
[312412977,1705863084295,-1000.0,0.00041643,30]
[312412978,1705863084305,-3344.19,0.00041643,31]
[312412979,1705863084314,-500.0,0.00041643,31]
[312412980,1705863084324,-656.95,0.00041643,31]
[312412981,1705863084333,-500.0,0.00041643,31]
[312412982,1705863084343,-1369.33,0.00041643,31]
[312412983,1705863084352,-500.0,0.00041643,31]
[312412984,1705863084361,-500.0,0.00041643,31]
[312412985,1705863084370,-637.28483301,0.00041643,31]
[312412986,1705863084380,-2125.69,0.00041643,31]
[312412987,1705863084389,-523.94,0.00041643,31]
[312412988,1705863084398,-2177.35,0.00041643,31]
[312412989,1705863084420,-500.0,0.00041643,31]
[312412990,1705863084429,-500.0,0.00041643,31]
[312412991,1705863084438,-1442.9,0.00041643,31]
[312412992,1705863084447,-500.0,0.00041643,31]
[312412993,1705863084456,-1712.99,0.00041643,31]
[312412994,1705863084466,-1404.4,0.00041643,31]
[312412995,1705863084475,-500.0,0.00041643,31]
[312412996,1705863084484,-500.0,0.00041643,31]
[312412997,1705863084494,-500.0,0.00041643,31]
[312412998,1705863084503,-500.0,0.00041643,31]
[312412999,1705863084511,-1360.45,0.00041643,31]
[312413000,1705863084520,-504.9,0.00041643,31]
[312413001,1705863084529,-989.76,0.00041643,31]
[312413002,1705863084539,-500.0,0.00041643,31]
[312413003,1705863084548,-500.0,0.00041643,31]
[312413004,1705863084557,-500.0,0.00041643,31]
[312413005,1705863084566,-2806.49,0.00041643,31]
[312413006,1705863084576,-500.0,0.00041643,31]
[312413007,1705863084585,-10000.0,0.00041643,31]
[312413008,1705863084594,-1242.78,0.00041643,31]
[312413009,1705863084603,-10132.2,0.00041643,31]
[312413010,1705863084612,-500.0,0.00041643,31]
[312413011,1705863084623,-627.09,0.00041643,31]
[312413012,1705863084632,-2496.9,0.00041643,31]
[312413013,1705863084642,-190.95446252,0.00041643,31]
[312413014,1705863084654,-500.0,0.00041643,31]
[312413015,1705863084665,-3890.38,0.00041643,31]
[312413016,1705863084674,-1097.31,0.00041643,31]
[312413017,1705863084683,-500.0,0.00041643,31]
[312413018,1705863084694,-4035.88,0.00041643,31]
[312413019,1705863084703,-1353.68,0.00041643,31]
[312413020,1705863084713,-10189.15,0.00041643,31]
[312413021,1705863084721,-500.0,0.00041643,31]
[312413022,1705863084732,-500.0,0.00041643,2]
[312413023,1705863084741,-775.43,0.00041643,31]
[312413024,1705863084751,-4930.09,0.00041643,31]
[312413025,1705863084761,-500.0,0.00041643,2]
[312413026,1705863084771,-500.0,0.00041643,31]
[312413027,1705863084780,-500.0,0.00041643,31]
[312413028,1705863084789,-500.0,0.00041643,10]
[312413029,1705863084798,-500.0,0.00041643,31]
[312413030,1705863084808,-500.0,0.00041643,31]
[312413031,1705863084817,-500.0,0.00041643,31]
[312413032,1705863084827,-4049.62,0.00041643,31]
[312413033,1705863084836,-678.75,0.00041643,31]
[312413034,1705863084845,-1229.34,0.00041643,31]
[312413035,1705863084855,-500.0,0.00041643,31]
[312413036,1705863084864,-3443.53,0.00041643,31]
[312413037,1705863084874,-500.0,0.00041643,31]
[312413038,1705863084884,-151.0,0.00041643,14]
[312413039,1705863084893,-151.0,0.00041643,7]
[312413040,1705863084902,-151.0,0.00041643,14]
[312413041,1705863084912,-151.0,0.00041643,14]
[312413042,1705863084922,-176.707544,0.00041643,14]
[312413043,1705863084931,-413.188458,0.00041643,14]
[312413044,1705863084940,-413.188458,0.00041643,14]
[312413045,1705863084949,-151.0,0.00041643,14]
[312413046,1705863084958,-340.295733,0.00041643,14]
[312413047,1705863084968,-340.295733,0.00041643,14]
[312413048,1705863084977,-151.0,0.00041643,14]
[312413049,1705863084986,-151.0,0.00041643,14]
[312413050,1705863084996,-209.776816,0.00041643,14]
[312413051,1705863085006,-382.18031,0.00041643,14]
[312413052,1705863085015,-382.18031,0.00041643,14]
[312413053,1705863085024,-158.863951,0.00041643,14]
[312413054,1705863085033,-151.0,0.00041643,14]
[312413055,1705863085046,-151.0,0.00041643,14]
[312413056,1705863085055,-151.0,0.00041643,14]
[312413057,1705863085065,-151.0,0.00041643,14]
[312413058,1705863085075,-522.583892,0.00041643,14]
[312413059,1705863085084,-522.583892,0.00041643,14]
[312413060,1705863085093,-151.0,0.00041643,14]
[312413061,1705863085102,-249.194922,0.00041643,14]
[312413062,1705863085111,-249.194922,0.00041643,14]
[312413063,1705863085120,-175.665256,0.00041643,14]
[312413064,1705863085130,-175.665256,0.00041643,14]
[312413065,1705863085139,-151.0,0.00041643,14]
[312413066,1705863085149,-860.597674,0.00041643,14]
[312413067,1705863085159,-860.597674,0.00041643,14]
[312413068,1705863085168,-153.06381515,0.00041652,30]
[312413069,1705863085179,-164.24481271,0.00041657,30]
[312413070,1705863085188,-355.40143417,0.00041705,30]
[312413071,1705863085198,-155.03181256,0.00041733,30]
[312413072,1705863085207,-364.73162279,0.00041801,14]
[312413073,1705863085216,-181.63371409,0.00041801,14]
[312413074,1705863085226,-248.61643646,0.00041801,14]
[312413075,1705863085235,-276.18212841,0.00041801,14]
[312413076,1705863085245,-218.49632604,0.00041801,14]
[312413077,1705863085255,-287.3248518,0.00041818,4]
[312413078,1705863085265,-953.43125265,0.00041833,30]
[312413079,1705863085274,-6607.927509,0.00041841,10]
[312413080,1705863085283,-309.550141,0.00041842,30]
[312413081,1705863085292,-628.711297,0.00041842,30]
[312413082,1705863085302,-166.160173,0.00041842,30]
[312413083,1705863085311,-309.550142,0.00041842,30]
[312413084,1705863085320,-628.711297,0.00041842,30]
[312413085,1705863085330,-646.52336,0.00041842,30]
[312413086,1705863085339,-928.650423,0.00041842,30]
[312413087,1705863085348,-1886.133893,0.00041842,30]
[312413088,1705863085357,-203.489608,0.00041842,30]
[312413089,1705863085366,-183.70649,0.00041842,30]
[312413090,1705863085375,-2000.04,0.0004186,2]
[312413091,1705863085384,-1000.0,0.00041862,4]
[312413092,1705863085394,-202.0,0.00041863,20]
[312413093,1705863085403,-157.48867627,0.00041883,30]
[312413094,1705863085413,-155.53562738,0.00041889,30]
[312413095,1705863085422,-19870.80846601,0.000419,15]
[312413096,1705863085432,-1168.71,0.000419,7]
[312413097,1705863085441,-150.96,0.00041977,2]
[312413098,1705863085451,-200.0,0.00041987,32]
[312413099,1705863085460,-200.0,0.00041987,52]
[312413100,1705863085470,-155.03181256,0.00041996,30]
[312413101,1705863085480,-728.90840768,0.00042,4]
[312413102,1705863085489,-515.44588401,0.00042,30]
[312413103,1705863085498,-1140.01463132,0.00042,120]
[312413104,1705863085508,-5760.74675,0.00042,30]
[312413105,1705863085517,-1750.0,0.00042,3]
[312413106,1705863085527,-200.0,0.00042,2]
[312413107,1705863085536,-150.0,0.00042,17]
[312413108,1705863085545,-200.0,0.00042,2]
[312413109,1705863085554,-157.0,0.00042,7]
[312413110,1705863085563,-953.43125265,0.00042058,30]
[312413111,1705863085573,-500.0,0.00042082,14]
[312413112,1705863085582,-158.65195984,0.00042087,30]
[312413113,1705863085591,-2410.0,0.0004209,3]
[312413114,1705863085601,-152.14113685,0.00042091,30]
[312413115,1705863085610,-150.0,0.00042142,2]
[312413116,1705863085620,-150.0,0.00042142,2]
[312413117,1705863085630,-150.0,0.00042142,2]
[312413118,1705863085640,-150.0,0.00042142,2]
[312413119,1705863085649,-150.0,0.00042142,2]
[312413120,1705863085663,-150.0,0.00042142,2]
[312413121,1705863085672,-150.0,0.00042142,2]
[312413122,1705863085681,-150.0,0.00042142,2]
[312413123,1705863085690,-173.89946186,0.00042159,30]
[312413124,1705863085700,-9455.7447895,0.00042162,2]
[312413125,1705863085709,-2563.78705927,0.00042191,2]
[312413126,1705863085719,-151.0,0.00042191,7]
[312413127,1705863085728,-191.398987,0.00042191,14]
[312413128,1705863085738,-151.0,0.00042191,14]
[312413129,1705863085748,-413.188458,0.00042191,14]
[312413130,1705863085757,-413.188458,0.00042191,14]
[312413131,1705863085766,-286.92199,0.00042191,14]
[312413132,1705863085775,-340.295733,0.00042191,14]
[312413133,1705863085784,-340.295733,0.00042191,14]
[312413134,1705863085793,-151.0,0.00042191,14]
[312413135,1705863085803,-151.0,0.00042191,14]
[312413136,1705863085812,-382.18031,0.00042191,14]
[312413137,1705863085821,-382.18031,0.00042191,14]
[312413138,1705863085830,-151.0,0.00042191,14]
[312413139,1705863085839,-151.0,0.00042191,14]
[312413140,1705863085848,-151.0,0.00042191,14]
[312413141,1705863085857,-151.0,0.00042191,14]
[312413142,1705863085866,-522.583892,0.00042191,14]
[312413143,1705863085876,-522.583892,0.00042191,14]
[312413144,1705863085885,-151.0,0.00042191,14]
[312413145,1705863085894,-249.194922,0.00042191,14]
[312413146,1705863085904,-249.194922,0.00042191,14]
[312413147,1705863085914,-175.665256,0.00042191,14]
[312413148,1705863085924,-175.665256,0.00042191,14]
[312413149,1705863085933,-151.0,0.00042191,14]
[312413150,1705863085943,-151.0,0.00042191,14]
[312413151,1705863085952,-860.597674,0.00042191,14]
[312413152,1705863085962,-860.597674,0.00042191,14]
[312413153,1705863085972,-860.597674,0.00042191,14]
[312413154,1705863085981,-860.597684,0.00042191,14]
[312413155,1705863085991,-500.0,0.00042191,30]
[312413156,1705863086001,-500.0,0.00042191,31]
[312413157,1705863086011,-500.0,0.00042191,5]
[312413158,1705863086021,-555.52,0.00042191,31]
[312413159,1705863086031,-500.0,0.00042191,31]
[312413160,1705863086042,-517.52392908,0.00042191,31]
[312413161,1705863086052,-500.0,0.00042191,7]
[312413162,1705863086061,-664.7,0.00042191,2]
[312413163,1705863086071,-503.87,0.00042191,31]
[312413164,1705863086081,-552.56,0.00042191,31]
[312413165,1705863086090,-500.0,0.00042191,31]
[312413166,1705863086100,-500.0,0.00042191,31]
[312413167,1705863086109,-548.42,0.00042191,31]
[312413168,1705863086119,-500.0,0.00042191,31]
[312413169,1705863086129,-500.0,0.00042191,31]
[312413170,1705863086139,-500.0,0.00042191,31]
[312413171,1705863086148,-500.0,0.00042191,31]
[312413172,1705863086157,-500.0,0.00042191,31]
[312413173,1705863086167,-545.31,0.00042191,31]
[312413174,1705863086177,-500.0,0.00042191,31]
[312413175,1705863086186,-511.92939142,0.00042191,31]
[312413176,1705863086196,-609.33,0.00042191,31]
[312413177,1705863086206,-500.0,0.00042191,31]
[312413178,1705863086216,-500.0,0.00042191,31]
[312413179,1705863086225,-500.0,0.00042191,31]
[312413180,1705863086235,-534.84,0.00042191,31]
[312413181,1705863086245,-500.0,0.00042191,31]
[312413182,1705863086254,-983.24,0.00042191,31]
[312413183,1705863086263,-500.0,0.00042191,31]
[312413184,1705863086272,-500.0,0.00042191,31]
[312413185,1705863086282,-500.0,0.00042191,31]
[312413186,1705863086291,-500.0,0.00042191,31]
[312413187,1705863086299,-540.33,0.00042191,31]
[312413188,1705863086309,-500.0,0.00042191,31]
[312413189,1705863086318,-622.72,0.00042191,31]
[312413190,1705863086327,-500.0,0.00042191,31]
[312413191,1705863086336,-500.0,0.00042191,31]
[312413192,1705863086346,-500.0,0.00042191,31]
[312413193,1705863086355,-500.0,0.00042191,31]
[312413194,1705863086366,-500.0,0.00042191,31]
[312413195,1705863086375,-500.0,0.00042191,31]
[312413196,1705863086384,-500.0,0.00042191,31]
[312413197,1705863086394,-553.34,0.00042191,31]
[312413198,1705863086403,-500.0,0.00042191,31]
[312413199,1705863086413,-500.0,0.00042191,31]
[312413200,1705863086423,-500.0,0.00042191,31]
[312413201,1705863086432,-500.0,0.00042191,31]
[312413202,1705863086442,-547.07,0.00042191,31]
[312413203,1705863086452,-500.0,0.00042191,31]
[312413204,1705863086461,-540.68,0.00042191,31]
[312413205,1705863086471,-500.0,0.00042191,31]
[312413206,1705863086480,-500.0,0.00042191,31]
[312413207,1705863086490,-500.0,0.00042191,31]
[312413208,1705863086500,-500.0,0.00042191,31]
[312413209,1705863086509,-662.98,0.00042191,20]
[312413210,1705863086519,-500.0,0.00042191,31]
[312413211,1705863086528,-500.0,0.00042191,31]
[312413212,1705863086538,-500.0,0.00042191,31]
[312413213,1705863086547,-500.0,0.00042191,31]
[312413214,1705863086557,-500.0,0.00042191,31]
[312413215,1705863086566,-1000.0,0.00042191,2]
[312413216,1705863086576,-500.0,0.00042191,31]
[312413217,1705863086585,-500.0,0.00042191,31]
[312413218,1705863086595,-679.87,0.00042191,31]
[312413219,1705863086605,-500.0,0.00042191,31]
[312413220,1705863086614,-549.94574892,0.00042191,31]
[312413221,1705863086625,-523.98538567,0.00042191,31]
[312413222,1705863086635,-500.0,0.00042191,31]
[312413223,1705863086645,-500.0,0.00042191,31]
[312413224,1705863086658,-500.0,0.00042191,31]
[312413225,1705863086667,-801.92,0.00042191,31]
[312413226,1705863086677,-500.0,0.00042191,31]
[312413227,1705863086688,-500.0,0.00042191,31]
[312413228,1705863086698,-500.0,0.00042191,31]
[312413229,1705863086708,-556.67,0.00042191,31]
[312413230,1705863086717,-500.0,0.00042191,31]
[312413231,1705863086726,-500.0,0.00042191,31]
[312413232,1705863086737,-500.0,0.00042191,31]
[312413233,1705863086747,-500.0,0.00042191,31]
[312413234,1705863086757,-500.0,0.00042191,31]
[312413235,1705863086766,-500.0,0.00042191,31]
[312413236,1705863086776,-500.0,0.00042191,31]
[312413237,1705863086785,-518.40901156,0.00042191,31]
[312413238,1705863086795,-628.07,0.00042191,31]
[312413239,1705863086805,-500.0,0.00042191,31]
[312413240,1705863086815,-500.0,0.00042191,31]
[312413241,1705863086826,-500.0,0.00042191,31]
[312413242,1705863086835,-500.0,0.00042191,31]
[312413243,1705863086844,-500.0,0.00042191,31]
[312413244,1705863086854,-500.0,0.00042191,31]
[312413245,1705863086863,-663.06,0.00042191,31]
[312413246,1705863086873,-500.0,0.00042191,31]
[312413247,1705863086882,-500.0,0.00042191,31]
[312413248,1705863086892,-515.38182257,0.00042191,31]
[312413249,1705863086902,-500.0,0.00042191,31]
[312413250,1705863086912,-584.84352055,0.00042191,31]
[312413251,1705863086922,-500.0,0.00042191,31]
[312413252,1705863086932,-500.0,0.00042191,31]
[312413253,1705863086942,-522.51186511,0.00042191,31]
[312413254,1705863086951,-562.47,0.00042191,31]
[312413255,1705863086961,-500.0,0.00042191,31]
[312413256,1705863086970,-500.0,0.00042191,31]
[312413257,1705863086981,-500.0,0.00042191,31]
[312413258,1705863086991,-875.16,0.00042191,31]
[312413259,1705863087000,-508.92361854,0.00042191,2]
[312413260,1705863087011,-500.0,0.00042191,31]
[312413261,1705863087021,-500.0,0.00042191,31]
[312413262,1705863087031,-500.0,0.00042191,31]
[312413263,1705863087041,-500.0,0.00042191,31]
[312413264,1705863087051,-500.0,0.00042191,31]
[312413265,1705863087061,-1217.3,0.00042191,31]
[312413266,1705863087070,-859.18,0.00042191,31]
[312413267,1705863087080,-500.0,0.00042191,31]
[312413268,1705863087090,-574.98,0.00042191,31]
[312413269,1705863087100,-500.0,0.00042191,31]
[312413270,1705863087109,-500.0,0.00042191,31]
[312413271,1705863087119,-500.0,0.00042191,31]
[312413272,1705863087130,-709.15985521,0.00042191,60]
[312413273,1705863087140,-500.0,0.00042191,31]
[312413274,1705863087150,-547.06,0.00042191,31]
[312413275,1705863087160,-500.0,0.00042191,31]
[312413276,1705863087170,-1017.54,0.00042191,2]
[312413277,1705863087180,-500.0,0.00042191,31]
[312413278,1705863087191,-500.0,0.00042191,31]
[312413279,1705863087201,-952.82,0.00042191,31]
[312413280,1705863087211,-500.0,0.00042191,31]
[312413281,1705863087221,-500.0,0.00042191,31]
[312413282,1705863087231,-1019.1,0.00042191,31]
[312413283,1705863087241,-500.0,0.00042191,31]
[312413284,1705863087251,-590.85,0.00042191,31]
[312413285,1705863087261,-670.02,0.00042191,31]
[312413286,1705863087272,-500.0,0.00042191,31]
[312413287,1705863087282,-899.25,0.00042191,31]
[312413288,1705863087292,-851.14,0.00042191,31]
[312413289,1705863087302,-500.0,0.00042191,31]
[312413290,1705863087312,-500.0,0.00042191,31]
[312413291,1705863087322,-382.73386746,0.00042191,31]
[312413292,1705863087331,-500.0,0.00042191,31]
[312413293,1705863087341,-500.0,0.00042191,31]
[312413294,1705863087351,-500.0,0.00042191,31]
[312413295,1705863087361,-1000.0,0.00042191,31]
[312413296,1705863087372,-901.99,0.00042191,31]
[312413297,1705863087382,-500.0,0.00042191,31]
[312413298,1705863087392,-500.0,0.00042191,31]
[312413299,1705863087402,-646.33,0.00042191,31]
[312413300,1705863087412,-500.0,0.00042191,31]
[312413301,1705863087422,-500.0,0.00042191,31]
[312413302,1705863087432,-500.0,0.00042191,31]
[312413303,1705863087441,-1051.97,0.00042191,31]
[312413304,1705863087452,-1736.1,0.00042191,31]
[312413305,1705863087462,-779.96,0.00042191,31]
[312413306,1705863087472,-500.0,0.00042191,31]
[312413307,1705863087481,-509.35947182,0.00042191,31]
[312413308,1705863087492,-500.0,0.00042191,31]
[312413309,1705863087501,-500.0,0.00042191,31]
[312413310,1705863087511,-500.0,0.00042191,31]
[312413311,1705863087520,-758.95,0.00042191,31]
[312413312,1705863087530,-552.16,0.00042191,31]
[312413313,1705863087540,-832.67,0.00042191,31]
[312413314,1705863087550,-500.0,0.00042191,31]
[312413315,1705863087560,-828.98,0.00042191,31]
[312413316,1705863087569,-500.0,0.00042191,31]
[312413317,1705863087579,-500.0,0.00042191,31]
[312413318,1705863087589,-885.24,0.00042191,2]
[312413319,1705863087599,-500.0,0.00042191,31]
[312413320,1705863087609,-500.0,0.00042191,31]
[312413321,1705863087619,-1089.54,0.00042191,31]
[312413322,1705863087628,-500.0,0.00042191,31]
[312413323,1705863087638,-500.0,0.00042191,31]
[312413324,1705863087648,-500.0,0.00042191,31]
[312413325,1705863087661,-1094.52,0.00042191,31]
[312413326,1705863087671,-500.0,0.00042191,2]
[312413327,1705863087681,-500.0,0.00042191,31]
[312413328,1705863087691,-994.47,0.00042191,31]
[312413329,1705863087700,-500.0,0.00042191,31]
[312413330,1705863087710,-1710.22,0.00042191,31]
[312413331,1705863087720,-623.96747138,0.00042191,31]
[312413332,1705863087730,-500.0,0.00042191,31]
[312413333,1705863087740,-1261.22,0.00042191,31]
[312413334,1705863087750,-500.0,0.00042191,31]
[312413335,1705863087760,-854.62,0.00042191,31]
[312413336,1705863087770,-695.88,0.00042191,31]
[312413337,1705863087779,-1142.33,0.00042191,31]
[312413338,1705863087789,-500.0,0.00042191,31]
[312413339,1705863087799,-500.0,0.00042191,31]
[312413340,1705863087808,-500.0,0.00042191,31]
[312413341,1705863087818,-852.67,0.00042191,31]
[312413342,1705863087828,-500.0,0.00042191,31]
[312413343,1705863087838,-196.35612782,0.00042191,31]
[312413344,1705863087848,-848.47,0.00042191,31]
[312413345,1705863087859,-500.0,0.00042191,31]
[312413346,1705863087869,-500.0,0.00042191,31]
[312413347,1705863087879,-764.06,0.00042191,31]
[312413348,1705863087888,-500.0,0.00042191,31]
[312413349,1705863087898,-500.0,0.00042191,31]
[312413350,1705863087907,-1037.5,0.00042191,31]
[312413351,1705863087917,-1061.05,0.00042191,31]
[312413352,1705863087927,-500.0,0.00042191,31]
[312413353,1705863087936,-500.0,0.00042191,31]
[312413354,1705863087946,-1032.07,0.00042191,31]
[312413355,1705863087956,-500.0,0.00042191,31]
[312413356,1705863087966,-539.06,0.00042191,20]
[312413357,1705863087975,-1080.19,0.00042191,31]
[312413358,1705863087985,-500.0,0.00042191,31]
[312413359,1705863087995,-500.0,0.00042191,31]
[312413360,1705863088006,-584.66,0.00042191,31]
[312413361,1705863088287,-508.46,0.00042191,31]
[312413362,1705863088297,-810.58,0.00042191,31]
[312413363,1705863088308,-504.22,0.00042191,31]
[312413364,1705863088318,-500.0,0.00042191,31]
[312413365,1705863088327,-517.96,0.00042191,31]
[312413366,1705863088337,-1628.19,0.00042191,31]
[312413367,1705863088347,-510.01022436,0.00042191,31]
[312413368,1705863088357,-500.0,0.00042191,31]
[312413369,1705863088367,-500.0,0.00042191,31]
[312413370,1705863088376,-841.37,0.00042191,31]
[312413371,1705863088386,-500.0,0.00042191,31]
[312413372,1705863088396,-500.0,0.00042191,31]
[312413373,1705863088406,-1031.39,0.00042191,31]
[312413374,1705863088416,-656.35,0.00042191,31]
[312413375,1705863088426,-1204.6,0.00042191,31]
[312413376,1705863088435,-885.84,0.00042191,31]
[312413377,1705863088445,-500.0,0.00042191,31]
[312413378,1705863088455,-500.0,0.00042191,31]
[312413379,1705863088464,-500.0,0.00042191,31]
[312413380,1705863088474,-743.47,0.00042191,31]
[312413381,1705863088483,-500.0,0.00042191,31]
[312413382,1705863088494,-1625.28,0.00042191,31]
[312413383,1705863088503,-1173.34,0.00042191,31]
[312413384,1705863088512,-651.6,0.00042191,31]
[312413385,1705863088521,-500.0,0.00042191,31]
[312413386,1705863088531,-1176.24,0.00042191,31]
[312413387,1705863088540,-600.27875491,0.00042191,31]
[312413388,1705863088549,-500.0,0.00042191,31]
[312413389,1705863088559,-653.83,0.00042191,31]
[312413390,1705863088568,-333.96122372,0.00042191,31]
[312413391,1705863088577,-580.99,0.00042191,31]
[312413392,1705863088587,-500.0,0.00042191,31]
[312413393,1705863088597,-500.0,0.00042191,31]
[312413394,1705863088607,-500.0,0.00042191,31]
[312413395,1705863088617,-500.0,0.00042191,31]
[312413396,1705863088626,-500.0,0.00042191,31]
[312413397,1705863088636,-703.23,0.00042191,31]
[312413398,1705863088645,-500.0,0.00042191,31]
[312413399,1705863088656,-979.3,0.00042191,31]
[312413400,1705863088667,-1290.61,0.00042191,31]
[312413401,1705863088677,-500.0,0.00042191,31]
[312413402,1705863088686,-500.0,0.00042191,31]
[312413403,1705863088697,-2291.12,0.00042191,31]
[312413404,1705863088707,-1150.77,0.00042191,31]
[312413405,1705863088717,-500.0,0.00042191,31]
[312413406,1705863088726,-755.53,0.00042191,31]
[312413407,1705863088736,-600.73,0.00042191,31]
[312413408,1705863088748,-500.0,0.00042191,30]
[312413409,1705863088759,-500.0,0.00042191,31]
[312413410,1705863088768,-1186.31,0.00042191,31]
[312413411,1705863088778,-570.33,0.00042191,31]
[312413412,1705863088787,-530.31,0.00042191,31]
[312413413,1705863088797,-1218.15,0.00042191,31]
[312413414,1705863088807,-500.0,0.00042191,31]
[312413415,1705863088816,-719.86,0.00042191,31]
[312413416,1705863088826,-500.0,0.00042191,31]
[312413417,1705863088835,-500.0,0.00042191,31]
[312413418,1705863088844,-500.0,0.00042191,31]
[312413419,1705863088854,-500.0,0.00042191,31]
[312413420,1705863088863,-1419.05,0.00042191,31]
[312413421,1705863088873,-1073.76,0.00042191,31]
[312413422,1705863088882,-989.05,0.00042191,31]
[312413423,1705863088892,-500.0,0.00042191,31]
[312413424,1705863088901,-1620.1,0.00042191,31]
[312413425,1705863088911,-500.0,0.00042191,31]
[312413426,1705863088920,-953.57,0.00042191,31]
[312413427,1705863088930,-503.72,0.00042191,31]
[312413428,1705863088941,-686.64,0.00042191,31]
[312413429,1705863088950,-1577.99,0.00042191,31]
[312413430,1705863088960,-741.63,0.00042191,31]
[312413431,1705863088970,-500.0,0.00042191,31]
[312413432,1705863088979,-10000.0,0.00042191,31]
[312413433,1705863088989,-657.61,0.00042191,31]
[312413434,1705863088998,-500.0,0.00042191,31]
[312413435,1705863089008,-500.0,0.00042191,31]
[312413436,1705863089018,-500.0,0.00042191,31]
[312413437,1705863089027,-500.0,0.00042191,31]
[312413438,1705863089038,-504.7,0.00042191,31]
[312413439,1705863089047,-500.0,0.00042191,31]